fUST/lending_fUST_20260208
["ID","MTS","AMOUNT","RATE_DAILY","PERIOD"]
[404780187,1770539448324,-500.0,0.00052328,120]
[404780189,1770539448335,-500.0,0.00052328,120]
[404780191,1770539448345,-500.0,0.00052328,120]
[404780193,1770539448362,-3477.42,0.00052328,21]
[404780195,1770539448373,-500.0,0.00052328,120]
[404780197,1770539448383,-498.76281418,0.00052328,120]
[404780199,1770539448394,-4357.25,0.00052328,120]
[404780201,1770539448404,-6080.37,0.00052328,120]
[404780203,1770539448415,-9930.54,0.00052328,90]
[404780205,1770539448427,-500.0,0.00052328,120]
[404780207,1770539448439,-500.0,0.00052328,120]
[404780208,1770539448451,-500.0,0.00052328,120]
[404780209,1770539448463,-500.0,0.00052328,120]
[404780210,1770539448475,-5770.34,0.00052328,120]
[404780211,1770539448486,-500.0,0.00052328,120]
[404780212,1770539448496,-500.0,0.00052328,120]
[404780213,1770539448507,-151.0,0.00052328,120]
[404780214,1770539448518,-597.69,0.00052328,30]
[404780215,1770539448529,-502.51087406,0.00052328,120]
[404780216,1770539448540,-500.0,0.00052328,120]
[404780217,1770539448551,-500.0,0.00052328,120]
[404780218,1770539448563,-1632.51,0.00052328,120]
[404780219,1770539448573,-500.0,0.00052328,120]
[404780220,1770539448584,-500.0,0.00052328,120]
[404780221,1770539448595,-55562.28,0.00052328,20]
[404780222,1770539448605,-529.34,0.00052328,120]
[404780223,1770539448615,-1624.82,0.00052328,30]
[404780224,1770539448626,-1186.43,0.00052328,120]
[404780225,1770539448637,-500.0,0.00052328,120]
[404780226,1770539448647,-500.0,0.00052328,120]
[404780227,1770539448658,-500.0,0.00052602,120]
[404780229,1770539448673,-500.0,0.00052602,120]
[404780230,1770539448683,-536.11,0.00052602,120]
[404780232,1770539448693,-500.0,0.00052602,7]
[404780233,1770539448703,-888.22,0.00052602,120]
[404780235,1770539448714,-500.0,0.00052602,120]
[404780237,1770539448724,-500.0,0.00052602,120]
[404780239,1770539448735,-1297.38,0.00052602,2]
[404780241,1770539448748,-500.0,0.00052602,120]
[404780244,1770539448759,-213.356841,0.00052602,120]
[404780246,1770539448771,-213.356841,0.00052602,120]
[404780248,1770539448781,-213.356841,0.00052602,120]
[404780250,1770539448792,-213.356841,0.00052602,120]
[404780252,1770539448803,-1000.0,0.00052602,2]
[404780254,1770539448813,-500.0,0.00052602,120]
[404780256,1770539448824,-1320.93,0.00052602,120]
[404780259,1770539448834,-662.93,0.00052602,120]
[404780261,1770539448846,-500.0,0.00052602,120]
[404780263,1770539448856,-540.11902262,0.00052602,53]
[404780265,1770539448866,-3371.69,0.00052602,2]
[404780267,1770539448876,-578.09971813,0.00052602,120]
[404780269,1770539448887,-599.86,0.00052602,120]
[404780271,1770539448897,-2303.69,0.00052602,120]
[404780273,1770539448907,-2238.84,0.00052602,120]
[404780276,1770539448916,-500.0,0.00052602,120]
[404780278,1770539448926,-1098.93,0.00052602,120]
[404780280,1770539448937,-500.0,0.00052602,120]
[404780282,1770539448947,-500.0,0.00052602,120]
[404780284,1770539448957,-500.0,0.00052602,120]
[404780286,1770539448966,-3477.42,0.00052602,21]
[404780288,1770539448976,-500.0,0.00052602,120]
[404780290,1770539448987,-4357.25,0.00052602,120]
[404780292,1770539448997,-6080.37,0.00052602,120]
[404780295,1770539449008,-9930.54,0.00052602,90]
[404780297,1770539449019,-500.0,0.00052602,120]
[404780299,1770539449028,-260.62430432,0.00052602,120]
[404780301,1770539449038,-500.0,0.00052602,120]
[404780303,1770539449049,-500.0,0.00052602,120]
[404780305,1770539449059,-254.08224198,0.00052602,120]
[404780308,1770539449080,-500.0,0.00052054,120]
[404780311,1770539449090,-2792.56177856,0.00052602,120]
[404780313,1770539449103,-2723.69597946,0.00052602,120]
[404780315,1770539449114,-500.0,0.00052602,120]
[404780317,1770539449124,-500.0,0.00052602,120]
[404780319,1770539449135,-597.69,0.00052602,30]
[404780321,1770539449145,-500.0,0.00052602,120]
[404780323,1770539449155,-500.0,0.00052602,120]
[404780325,1770539449166,-1632.51,0.00052602,120]
[404780326,1770539449176,-500.0,0.00052602,120]
[404780327,1770539449187,-500.0,0.00052602,120]
[404780328,1770539449198,-55562.28,0.00052602,20]
[404780338,1770539449350,-529.34,0.00052602,120]
[404780339,1770539449362,-1624.82,0.00052602,30]
[404780340,1770539449371,-1186.43,0.00052602,120]
[404780341,1770539449380,-500.0,0.00052602,120]
[404780342,1770539449390,-500.0,0.00052602,120]
[404780343,1770539449400,-172.45,0.000528,14]
[404780344,1770539449410,-1000.0,0.00052875,120]
[404780345,1770539449419,-274.8669175,0.00052876,120]
[404780346,1770539449428,-305.25,0.00052876,42]
[404780347,1770539449438,-500.0,0.00052876,120]
[404780348,1770539449447,-536.11,0.00052876,120]
[404780349,1770539449456,-516.99105169,0.00052876,7]
[404780351,1770539449465,-888.22,0.00052876,120]
[404780353,1770539449474,-484.17669047,0.00052876,120]
[404780355,1770539449485,-575.19974263,0.00052876,120]
[404780357,1770539449494,-1297.38,0.00052876,2]
[404780359,1770539449504,-500.0,0.00052876,120]
[404780360,1770539449514,-213.356841,0.00052876,120]
[404780362,1770539449523,-213.356841,0.00052876,120]
[404780364,1770539449533,-213.356841,0.00052876,120]
[404780366,1770539449543,-213.356841,0.00052876,120]
[404780368,1770539449554,-1000.0,0.00052876,2]
[404780369,1770539449563,-500.0,0.00052876,120]
[404780370,1770539449573,-1320.93,0.00052876,120]
[404780371,1770539449583,-662.93,0.00052876,120]
[404780372,1770539449592,-500.0,0.00052876,120]
[404780373,1770539449603,-3371.69,0.00052876,2]
[404780374,1770539449614,-599.86,0.00052876,120]
[404780375,1770539449624,-2303.69,0.00052876,120]
[404780376,1770539449633,-2238.84,0.00052876,120]
[404780377,1770539449644,-500.0,0.00052876,120]
[404780378,1770539449655,-1098.93,0.00052876,120]
[404780379,1770539449667,-160.0,0.00052876,3]
[404780380,1770539449678,-162.48639891,0.00052876,5]
[404780381,1770539449687,-500.0,0.00052876,120]
[404780382,1770539449698,-500.0,0.00052876,120]
[404780383,1770539449707,-281.82920912,0.00052876,120]
[404780384,1770539449716,-3477.42,0.00052876,21]
[404780385,1770539449725,-500.0,0.00052876,120]
[404780386,1770539449735,-1916.69174704,0.00052876,120]
[404780387,1770539476555,500.0,0.00013273,2]
[404780388,1770539488703,500.0,0.00013699,2]
[404780389,1770539488735,891.74859664,0.00014247,2]
[404780390,1770539488757,108.25140336,0.00014247,2]
[404780391,1770539525251,500.0,0.00013273,2]
[404780392,1770539525303,1000.00437204,0.00013821,2]
[404780393,1770539714085,500.0,0.00013699,2]
[404780394,1770539714133,473.80922961,0.00014247,2]
[404780395,1770539716352,500.0,0.00013273,2]
[404780426,1770540307508,500.0,0.00013699,2]
[404780427,1770540313002,500.00000003,0.00013699,2]
[404780428,1770540313070,500.0,0.00013699,2]
[404780499,1770540638539,-300.0,0.00026844,2]
[404780501,1770540638549,-1200.0,0.00026844,2]
[404780503,1770540638564,-6338.93434008,0.00026844,2]
[404780505,1770540638578,-650.88,0.00026846,2]
[404780507,1770540638588,-313.0,0.00029026,2]
[404780509,1770540638598,-520.0,0.00035833,30]
[404780511,1770540638608,-3296.7546247,0.00038046,2]
[404780513,1770540638617,-271.926493,0.00039566,2]
[404780515,1770540638627,-999.4622864,0.00040666,2]
[404780517,1770540638636,-215.859438,0.00042233,60]
[404780519,1770540638645,-1489.4277434,0.00042367,2]
[404780521,1770540638655,-322.012298,0.00042904,2]
[404780522,1770540638665,-337.03397098,0.00043103,2]
[404780524,1770540638675,-606.66114776,0.00043103,2]
[404780526,1770540638685,-508.61054434,0.00043103,2]
[404780528,1770540638695,-915.49897981,0.00043103,2]
[404780530,1770540638704,-85.72209348,0.0004471,2]
[404780533,1770540638726,-236.29020452,0.0004471,2]
[404780535,1770540638736,-142.18344875,0.00046516,2]
[404780537,1770540638748,-179.82884925,0.00046516,2]
[404780539,1770540638758,-322.012298,0.00048322,2]
[404780540,1770540638768,-741.77891082,0.00048451,2]
[404780542,1770540638778,-322.012298,0.00050129,2]
[404780544,1770540638788,-150.0,0.00050129,120]
[404780546,1770540638798,-241.65,0.00050136,30]
[404780548,1770540638807,-443.64772876,0.00050771,4]
[404780550,1770540638817,-241.65,0.00050821,33]
[404780551,1770540638828,-161.0,0.00051,120]
[404780553,1770540638838,-66.6765258,0.00051027,120]
[404780571,1770540640350,-434.0,0.00051027,120]
[404780572,1770540640361,-94.3234742,0.00051027,120]
[404780573,1770540640370,-1600.0,0.000515,120]
[404780574,1770540640380,-241.65,0.00051506,36]
[404780575,1770540640389,-1773.2877314,0.00051754,23]
[404780576,1770540640405,-500.0,0.00051754,23]
[404780590,1770540644416,-250.0,0.00035287,2]
[404780591,1770540644429,-1750.0,0.00039677,2]
[404780598,1770540646299,-1000.0,0.00039677,2]
[404780599,1770540646311,-894.9563,0.00039677,2]
[404780600,1770540695707,423.14886919,0.00013699,2]
[404780601,1770540696925,-441.0,0.00035838,30]
[404780602,1770540697652,58.99999997,0.00035838,30]
[404780603,1770540731523,-150.36417254,0.00021918,2]
[404780604,1770540806974,349.63582743,0.00026849,2]
[404780611,1770541225266,-155.52632333,0.00016438,2]
[404780612,1770541225292,-164.82499492,0.00016438,2]
[404780614,1770541301367,500.0,0.00013273,2]
[404780616,1770541387239,508.9474638,0.00030136,120]
[404780628,1770541585153,-5000.0,0.00024953,2]
[404780629,1770541591285,-3617.12483928,0.00025205,2]
[404780630,1770541591318,-2342.62145225,0.00025205,2]
[404780631,1770541597495,-423.13886919,0.00025205,2]
[404780632,1770541683751,159.44,9.99e-05,7]
[404780633,1770541684039,159.43,9.99e-05,7]
[404780657,1770541838449,-5000.0,0.00024211,2]
[404780658,1770541838460,-5000.0,0.00024456,2]
[404780661,1770541838470,-300.0,0.00024952,2]
[404780663,1770541838481,-1200.0,0.00024952,2]
[404780665,1770541838490,-4534.30050728,0.00024953,2]
[404780666,1770541838503,-1721.52119882,0.00024953,2]
[404780667,1770541838513,-300.0,0.00025203,2]
[404780668,1770541838523,-15530.6402293,0.00026,7]
[404780669,1770541838533,-420.0,0.00027033,2]
[404780670,1770541838543,-1680.0,0.00027155,2]
[404780671,1770541838554,-741.77891082,0.00029144,2]
[404780672,1770541838564,-587.0,0.00029287,2]
[404780673,1770541838574,-1018.0,0.00029553,2]
[404780674,1770541838584,-336.0,0.0003,14]
[404780675,1770541838594,-823.0,0.00031729,2]
[404780676,1770541838604,-1152.0,0.00034375,2]
[404780677,1770541838615,-6278.0325993,0.00034414,2]
[404780678,1770541838625,-441.0,0.00035838,30]
[404780679,1770541838646,-397.59,0.00037488,7]
[404780680,1770541838656,-173.23,0.00037488,7]
[404780681,1770541838666,-173.23,0.00037488,7]
[404780682,1770541838678,-1355.0437,0.00039701,2]
[404780683,1770541838886,-6255.8217061,0.00041334,2]
[404780684,1770541838899,-505.603583,0.00042152,120]
[404780685,1770541838909,-5958.3510735,0.00042153,2]
[404780686,1770541838918,-150.0,0.00043159,120]
[404780687,1770541838928,-177.0,0.00045159,120]
[404780688,1770541838937,-2160.0,0.00045243,2]
[404780689,1770541838947,-1378.282,0.00045243,2]
[404780690,1770541838956,-632.0,0.00045243,2]
[404780691,1770541838966,-5958.3510735,0.00047059,2]
[404780692,1770541838976,-204.0,0.00047159,120]
[404780693,1770541838986,-168.0,0.00047436,2]
[404780694,1770541838996,-718.59855968,0.00047588,7]
[404780695,1770541839005,-2160.0,0.00048243,2]
[404780696,1770541839015,-1374.0,0.00048243,2]
[404780697,1770541839024,-632.0,0.00048243,2]
[404780698,1770541839034,-718.59855968,0.00048779,7]
[404780699,1770541839044,-231.0,0.00049159,120]
[404780700,1770541839053,-398.21407003,0.00049626,2]
[404780701,1770541839063,-716.78532605,0.00049626,2]
[404780702,1770541839074,-703.38904417,0.00049626,2]
[404780703,1770541839083,-1266.10027951,0.00049626,2]
[404780704,1770541839093,-2250.84494135,0.00049626,2]
[404780705,1770541839102,-3516.94522085,0.00049626,2]
[404780706,1770541839112,-718.59855968,0.0005,120]
[404780707,1770541839121,-151.0,0.00050005,2]
[404780708,1770541839131,-211.45,0.00050136,30]
[404780709,1770541839140,-669.49901865,0.00050771,4]
[404780710,1770541839150,-728.21453985,0.00050771,4]
[404780711,1770541839159,-211.45,0.00050821,33]
[404780712,1770541839168,-1263.0,0.00051,120]
[404780713,1770541839178,-258.0,0.00051159,120]
[404780714,1770541839187,-2154.0,0.00051243,120]
[404780715,1770541839196,-1374.0,0.00051243,120]
[404780716,1770541839205,-632.0,0.00051243,120]
[404780717,1770541839215,-2000.0,0.000515,120]
[404780718,1770541839224,-211.45,0.00051506,36]
[404780719,1770541839233,-2450.29918202,0.000517,23]
[404780720,1770541839242,-240730.3446644,0.000518,30]
[404780721,1770541839251,-172.91,0.000518,14]
[404780722,1770541839260,-151.0,0.000518,120]
[404780723,1770541839269,-151.0,0.000518,120]
[404780724,1770541839278,-151.0,0.000518,120]
[404780725,1770541839288,-155.310388,0.000518,120]
[404780726,1770541839297,-173.398738,0.000518,120]
[404780727,1770541839308,-156.277485,0.000518,120]
[404780728,1770541839317,-156.277485,0.000518,120]
[404780729,1770541839327,-156.277485,0.000518,120]
[404780730,1770541839336,-156.277485,0.000518,120]
[404780731,1770541839345,-330.282732,0.000518,120]
[404780732,1770541839354,-330.282732,0.000518,120]
[404780733,1770541839363,-330.282732,0.000518,120]
[404780734,1770541839372,-330.282732,0.000518,120]
[404780735,1770541839381,-322.012298,0.00051935,2]
[404780736,1770541839391,-5958.3510735,0.00051965,2]
[404780737,1770541839400,-100000.0,0.0005199,2]
[404780738,1770541839410,-151.0,0.0005199,120]
[404780739,1770541839419,-189.363229,0.0005199,120]
[404780740,1770541839429,-151.514068,0.0005199,120]
[404780741,1770541839438,-162.183925,0.0005199,120]
[404780742,1770541839449,-162.183925,0.0005199,120]
[404780743,1770541839459,-162.183925,0.0005199,120]
[404780744,1770541839468,-162.183925,0.0005199,120]
[404780745,1770541839477,-151.0,0.0005199,120]
[404780746,1770541839486,-180.02689,0.0005199,120]
[404780747,1770541839495,-151.0,0.0005199,120]
[404780748,1770541839505,-151.0,0.0005199,120]
[404780749,1770541839514,-151.0,0.0005199,120]
[404780750,1770541839523,-151.0,0.0005199,120]
[404780751,1770541839533,-156.277485,0.0005199,120]
[404780752,1770541839543,-156.277485,0.0005199,120]
[404780753,1770541839554,-156.277485,0.0005199,120]
[404780754,1770541839564,-156.277485,0.0005199,120]
[404780755,1770541839574,-330.282732,0.0005199,120]
[404780756,1770541839584,-330.282732,0.0005199,120]
[404780757,1770541839594,-330.282732,0.0005199,120]
[404780758,1770541839604,-330.282732,0.0005199,120]
[404780759,1770541839621,-167.07934,0.0005199,120]
[404780760,1770541839631,-3000.0,0.00052,120]
[404780761,1770541839640,-161.0,0.00052,120]
[404780762,1770541839650,-1000.0,0.00052,120]
[404780763,1770541839659,-155.0,0.00052053,120]
[404780764,1770541839668,-500.0,0.00052054,120]
[404780765,1770541839677,-500.0,0.00052054,120]
[404780766,1770541839688,-500.0,0.00052054,120]
[404780767,1770541839700,-1919.74,0.00052054,120]
[404780768,1770541839709,-1865.7,0.00052054,120]
[404780769,1770541839719,-500.0,0.00052054,120]
[404780770,1770541839730,-151.0,0.00052054,120]
[404780771,1770541839740,-151.0,0.00052054,120]
[404780772,1770541839749,-500.0,0.00052054,120]
[404780773,1770541839759,-500.0,0.00052054,120]
[404780774,1770541839769,-500.0,0.00052054,120]
[404780775,1770541839779,-162.183925,0.00052054,120]
[404780776,1770541839789,-162.183925,0.00052054,120]
[404780777,1770541839800,-162.183925,0.00052054,120]
[404780778,1770541839814,-162.183925,0.00052054,120]
[404780779,1770541839823,-151.0,0.00052054,120]
[404780780,1770541839835,-151.0,0.00052054,120]
[404780781,1770541839845,-500.0,0.00052054,120]
[404780782,1770541839854,-500.0,0.00052054,120]
[404780783,1770541839863,-1100.77,0.00052054,120]
[404780784,1770541839872,-552.44,0.00052054,120]
[404780785,1770541839881,-740.18,0.00052054,120]
[404780786,1770541839890,-500.0,0.00052054,120]
[404780787,1770541839900,-2809.74,0.00052054,2]
[404780788,1770541839909,-1081.15,0.00052054,2]
[404780789,1770541839917,-151.0,0.00052054,120]
[404780790,1770541839926,-500.0,0.00052054,120]
[404780791,1770541839936,-500.0,0.00052054,120]
[404780792,1770541839945,-2897.85,0.00052054,21]
[404780793,1770541839954,-1000.0,0.00052054,2]
[404780794,1770541839964,-500.0,0.00052054,120]
[404780796,1770541839973,-500.0,0.00052054,120]
[404780797,1770541839986,-3732.73,0.00052054,120]
[404780798,1770541839996,-5320.33,0.00052054,120]
[404780799,1770541840005,-915.78,0.00052054,120]
[404780800,1770541840015,-156.277485,0.00052054,120]
[404780801,1770541840025,-156.277485,0.00052054,120]
[404780802,1770541840034,-156.277485,0.00052054,120]
[404780803,1770541840043,-156.277485,0.00052054,120]
[404780804,1770541840056,-156.277485,0.00052054,120]
[404780805,1770541840065,-156.277485,0.00052054,120]
[404780806,1770541840077,-156.277485,0.00052054,120]
[404780807,1770541840086,-156.277485,0.00052054,120]
[404780808,1770541840095,-330.282732,0.00052054,120]
[404780809,1770541840104,-330.282732,0.00052054,120]
[404780810,1770541840114,-330.282732,0.00052054,120]
[404780811,1770541840123,-330.282732,0.00052054,120]
[404780812,1770541840132,-330.282732,0.00052054,120]
[404780813,1770541840142,-330.282732,0.00052054,120]
[404780814,1770541840151,-330.282732,0.00052054,120]
[404780815,1770541840161,-330.282732,0.00052054,120]
[404780816,1770541840170,-500.0,0.00052054,120]
[404780817,1770541840180,-500.0,0.00052054,120]
[404780818,1770541840189,-500.0,0.00052054,120]
[404780819,1770541840199,-8689.22,0.00052054,90]
[404780820,1770541840208,-500.0,0.00052054,120]
[404780821,1770541840217,-500.0,0.00052054,120]
[404780822,1770541840226,-500.0,0.00052054,120]
[404780823,1770541840235,-5049.05,0.00052054,120]
[404780824,1770541840245,-500.0,0.00052054,120]
[404780825,1770541840254,-500.0,0.00052054,120]
[404780826,1770541840263,-1038.12,0.00052054,120]
[404780827,1770541840272,-500.0,0.00052054,120]
[404780828,1770541840280,-266.18229555,0.00052054,120]
[404780829,1770541840290,-500.0,0.00052054,120]
[404780830,1770541840300,-522.98,0.00052054,30]
[404780831,1770541840313,-500.0,0.00052054,120]
[404780832,1770541840323,-1428.44,0.00052054,120]
[404780833,1770541840332,-1421.72,0.00052054,30]
[404780835,1770541840342,-500.0,0.00052054,120]
[404780836,1770541840351,-48617.0,0.00052054,20]
[404780837,1770541840360,-211.45,0.00052191,39]
[404780838,1770541840369,-151.0,0.00052318,120]
[404780839,1770541840381,-151.0,0.00052318,120]
[404780840,1770541840390,-500.0,0.00052328,120]
[404780841,1770541840400,-1919.74,0.00052328,120]
[404780842,1770541840409,-1865.7,0.00052328,120]
[404780843,1770541840421,-500.0,0.00052328,120]
[404780844,1770541840430,-151.0,0.00052328,120]
[404780845,1770541840440,-151.0,0.00052328,120]
[404780846,1770541840449,-500.0,0.00052328,120]
[404780847,1770541840458,-500.0,0.00052328,120]
[404780848,1770541840467,-500.0,0.00052328,120]
[404780849,1770541840476,-162.183925,0.00052328,120]
[404780850,1770541840485,-162.183925,0.00052328,120]
[404780851,1770541840495,-162.183925,0.00052328,120]
[404780852,1770541840504,-162.183925,0.00052328,120]
[404780853,1770541840513,-162.183925,0.00052328,120]
[404780854,1770541840522,-162.183925,0.00052328,120]
[404780855,1770541840531,-162.183925,0.00052328,120]
[404780856,1770541840541,-162.183925,0.00052328,120]
[404780857,1770541840550,-151.0,0.00052328,120]
[404780858,1770541840559,-151.0,0.00052328,120]
[404780859,1770541840568,-171.299951,0.00052328,120]
[404780860,1770541840577,-500.0,0.00052328,120]
[404780861,1770541840587,-500.0,0.00052328,120]
[404780862,1770541840596,-1100.77,0.00052328,120]
[404780863,1770541840605,-552.44,0.00052328,120]
[404780864,1770541840614,-740.18,0.00052328,120]
[404780865,1770541840623,-500.0,0.00052328,120]
[404780866,1770541840631,-2809.74,0.00052328,2]
[404780867,1770541840641,-1081.15,0.00052328,2]
[404780868,1770541840650,-151.0,0.00052328,120]
[404780869,1770541840659,-500.0,0.00052328,120]
[404780870,1770541840668,-500.0,0.00052328,120]
[404780871,1770541840678,-2897.85,0.00052328,21]
[404780872,1770541840687,-1000.0,0.00052328,2]
[404780873,1770541840696,-500.0,0.00052328,120]
[404780874,1770541840705,-500.0,0.00052328,120]
[404780875,1770541840714,-3732.73,0.00052328,120]
[404780876,1770541840723,-5320.33,0.00052328,120]
[404780877,1770541840732,-915.78,0.00052328,120]
[404780878,1770541840741,-156.277485,0.00052328,120]
[404780879,1770541840752,-156.277485,0.00052328,120]
[404780880,1770541840761,-156.277485,0.00052328,120]
[404780881,1770541840770,-156.277485,0.00052328,120]
[404780882,1770541840779,-330.282732,0.00052328,120]
[404780883,1770541840788,-330.282732,0.00052328,120]
[404780884,1770541840796,-330.282732,0.00052328,120]
[404780885,1770541840806,-330.282731,0.00052328,120]
[404780886,1770541840816,-500.0,0.00052328,120]
[404780887,1770541840825,-554.98342501,0.00052328,120]
[404780888,1770541840834,-500.0,0.00052328,120]
[404780889,1770541840845,-8689.22,0.00052328,90]
[404780890,1770541840853,-500.0,0.00052328,120]
[404780891,1770541840862,-500.0,0.00052328,120]
[404780892,1770541840871,-500.0,0.00052328,120]
[404780893,1770541840880,-5049.05,0.00052328,120]
[404780894,1770541840889,-500.0,0.00052328,120]
[404780895,1770541840898,-500.0,0.00052328,120]
[404780896,1770541840907,-1038.12,0.00052328,120]
[404780897,1770541840916,-500.0,0.00052328,120]
[404780898,1770541840926,-500.0,0.00052328,120]
[404780899,1770541840935,-522.98,0.00052328,30]
[404780900,1770541840945,-500.0,0.00052328,120]
[404780901,1770541840954,-1428.44,0.00052328,120]
[404780902,1770541840964,-1421.72,0.00052328,30]
[404780903,1770541840973,-500.7,0.00052328,120]
[404780904,1770541840983,-48617.0,0.00052328,20]
[404780905,1770541840992,-161.0,0.00052329,120]
[404780906,1770541841001,-670.6,0.000524,14]
[404780907,1770541841010,-21315.40045423,0.00052402,120]
[404780908,1770541841091,-394.2839291,0.00052402,120]
[404780909,1770541841102,-6231.0042905,0.00052402,120]
[404780910,1770541841131,-3e-08,0.00052402,120]
[404780938,1770541846459,-256.96863033,0.00052054,21]
[404780992,1770542166772,500.0,0.00013273,2]
[404780993,1770542166824,913.93158627,0.00013821,2]
[404781253,1770542743586,-5000.0,0.00024277,2]
[404781254,1770542749489,-794.39934226,0.00024522,2]
[404781255,1770542749520,-2643.69507357,0.00024522,2]
[404781256,1770542749581,-1391.02958207,0.00024522,2]
[404781257,1770542755777,-1732.79158627,0.00024522,2]
[404781305,1770542903303,10000.01,0.00017,2]
[404781306,1770542903325,10000.01,0.00017,2]
[404781307,1770542903347,10000.01,0.00017,2]
[404781308,1770542903372,10000.01,0.00017,2]
[404781309,1770542903395,9164.30155192,0.00017,2]
[404781433,1770543032446,-376.35483316,0.00023794,2]
[404781448,1770543038706,-4623.64516684,0.00023794,2]
[404781449,1770543038716,-1637.33208282,0.00024034,2]
[404781450,1770543038727,-1200.0,0.00024276,2]
[404781451,1770543038736,-5000.0,0.00024277,2]
[404781452,1770543038746,-5788.81852226,0.00024277,2]
[404781453,1770543038755,-278.685295,0.00024445,2]
[404781454,1770543038766,-302.40442949,0.00024999,2]
[404781455,1770543038776,-428.50856816,0.00024999,2]
[404781456,1770543038785,-500.0,0.00024999,2]
[404781457,1770543038795,-500.0,0.00024999,2]
[404781458,1770543038804,-500.0,0.00024999,2]
[404781459,1770543038813,-389.35408017,0.00024999,2]
[404781460,1770543038823,-647.63635579,0.00024999,2]
[404781461,1770543038833,-500.0,0.00024999,2]
[404781462,1770543038842,-500.0,0.00024999,2]
[404781463,1770543038851,-154.36659779,0.00024999,2]
[404781464,1770543038861,-500.0,0.00024999,2]
[404781465,1770543038870,-500.0,0.00024999,2]
[404781466,1770543038879,-471.80264889,0.00024999,2]
[404781467,1770543038888,-500.0,0.00024999,2]
[404781468,1770543038898,-500.0,0.00024999,2]
[404781469,1770543038907,-206.59806361,0.00024999,2]
[404781470,1770543038916,-500.0,0.00024999,2]
[404781471,1770543038925,-500.0,0.00024999,2]
[404781472,1770543038934,-500.0,0.00024999,2]
[404781473,1770543038944,-500.0,0.00024999,2]
[404781474,1770543038953,-500.0,0.00024999,2]
[404781475,1770543038963,-500.0,0.00024999,2]
[404781476,1770543038972,-499.99999999,0.00024999,2]
[404781477,1770543038982,-48780.34412509,0.00025,2]
[404781478,1770543038991,-480.0,0.00026439,2]
[404781479,1770543039000,-218.02791256,0.0002876,2]
[404781480,1770543039010,-893.50760257,0.00029,2]
[404781481,1770543039020,-301.43016792,0.00035616,7]
[404781482,1770543039030,-278.685295,0.00036667,2]
[404781483,1770543039039,-1675.313091,0.00036847,2]
[404781484,1770543039048,-1212.0,0.0003685,30]
[404781485,1770543039058,-1675.313091,0.00038399,2]
[404781486,1770543039068,-194.11573488,0.00039719,120]
[404781487,1770543039079,-1675.313091,0.0003995,2]
[404781488,1770543039089,-1410.34207216,0.00040247,2]
[404781489,1770543039101,-7352.91318914,0.00040247,2]
[404781490,1770543039110,-4527.53473788,0.00040681,2]
[404781523,1770543046669,-776.56394879,0.00040274,2]
[404781667,1770543176561,-218.43492476,0.00024998,2]
[404781668,1770543176626,-163.0319156,0.00026849,2]
[404781671,1770543205827,-218.43492476,0.00026849,2]
[404781737,1770543327833,526.19077036,0.00013699,2]
[404781845,1770543622754,521.15093099,0.00013699,2]
[404781846,1770543630061,500.0,0.00013273,2]
[404781853,1770543704896,167.69137301,0.00013273,2]